fUSD/lending_fUSD_20260503
["ID","MTS","AMOUNT","RATE_DAILY","PERIOD"]
[421481800,1777746640000,-441.43104324,0.00014992,2]
[421481794,1777746640000,-500.0,0.00014992,2]
[421481796,1777746640000,-500.0,0.00014992,2]
[421481798,1777746640000,-500.0,0.00014992,2]
[421481768,1777746640000,-9999.99,0.00014986,2]
[421481792,1777746640000,-500.0,0.00014992,2]
[421481776,1777746640000,-200.0,0.00014991,2]
[421481763,1777746640000,-484.5277998,0.00014968,2]
[421481770,1777746640000,-150.99,0.00014986,2]
[421481774,1777746640000,-200.44978078,0.0001499,2]
[421481766,1777746640000,-150.0,0.00014986,2]
[421481758,1777746640000,-14256.75926619,0.000149,2]
[421481765,1777746640000,-171.96451102,0.00014968,2]
[421481760,1777746640000,-350.61188152,0.000149,2]
[421481761,1777746640000,-1038.19684835,0.000149,2]
[421481757,1777746640000,-2283.25912504,0.000149,5]
[421481756,1777746640000,-533.0,0.000149,5]
[421481804,1777746640000,-500.0,0.00014992,2]
[421481772,1777746640000,-24133.05,0.0001499,2]
[421481782,1777746640000,-500.0,0.00014992,2]
[421481802,1777746640000,-500.0,0.00014992,2]
[421481784,1777746640000,-500.0,0.00014992,2]
[421481786,1777746640000,-500.0,0.00014992,2]
[421481840,1777746640000,-500.0,0.00014992,2]
[421481837,1777746640000,-500.0,0.00014992,2]
[421481845,1777746640000,-500.0,0.00014992,2]
[421481843,1777746640000,-500.0,0.00014992,2]
[421481833,1777746640000,-500.0,0.00014992,2]
[421481831,1777746640000,-500.0,0.00014992,2]
[421481829,1777746640000,-500.0,0.00014992,2]
[421481826,1777746640000,-500.0,0.00014992,2]
[421481822,1777746640000,-500.0,0.00014992,2]
[421481847,1777746640000,-500.0,0.00014992,2]
[421481818,1777746640000,-500.0,0.00014992,2]
[421481816,1777746640000,-500.0,0.00014992,2]
[421481824,1777746640000,-500.0,0.00014992,2]
[421481814,1777746640000,-500.0,0.00014992,2]
[421481806,1777746640000,-500.0,0.00014992,2]
[421481812,1777746640000,-500.0,0.00014992,2]
[421481810,1777746640000,-500.0,0.00014992,2]
[421481808,1777746640000,-500.0,0.00014992,2]
[421481788,1777746640000,-500.0,0.00014992,2]
[421481835,1777746640000,-500.0,0.00014992,2]
[421481820,1777746640000,-500.0,0.00014992,2]
[421481869,1777746641000,-500.0,0.00014992,2]
[421481874,1777746641000,-500.0,0.00014992,2]
[421481878,1777746641000,-500.0,0.00014992,2]
[421481885,1777746641000,-2678.323,0.00014994,2]
[421481881,1777746641000,-500.0,0.00014992,2]
[421481882,1777746641000,-191.757,0.00014994,2]
[421481867,1777746641000,-500.0,0.00014992,2]
[421481871,1777746641000,-500.0,0.00014992,2]
[421481876,1777746641000,-500.0,0.00014992,2]
[421481856,1777746641000,-500.0,0.00014992,2]
[421481872,1777746641000,-500.0,0.00014992,2]
[421481862,1777746641000,-500.0,0.00014992,2]
[421481858,1777746641000,-500.0,0.00014992,2]
[421481853,1777746641000,-500.0,0.00014992,2]
[421481860,1777746641000,-500.0,0.00014992,2]
[421481849,1777746641000,-578.85414708,0.00014992,2]
[421481851,1777746641000,-500.0,0.00014992,2]
[421481898,1777746641000,-500.0,0.00014994,2]
[421481864,1777746641000,-500.0,0.00014992,2]
[421481901,1777746641000,-500.0,0.00014994,2]
[421481891,1777746641000,-179.71803985,0.00014994,2]
[421481905,1777746641000,-337.70700809,0.00014994,2]
[421481948,1777746641000,-776.90309751,0.00015,2]
[421481887,1777746641000,-211.70761816,0.00014994,2]
[421481942,1777746641000,-300.0,0.00014999,2]
[421481940,1777746641000,-669.67353921,0.00014999,2]
[421481930,1777746641000,-2404.29847,0.00014995,2]
[421481937,1777746641000,-300.0,0.00014999,2]
[421481935,1777746641000,-250.0,0.00014999,2]
[421481933,1777746641000,-287.28861497,0.00014999,2]
[421481928,1777746641000,-29771.9915766,0.00014995,2]
[421481944,1777746641000,-115226.30348649,0.00015,2]
[421481926,1777746641000,-133133.5147569,0.00014995,2]
[421481921,1777746641000,-500.0,0.00014994,2]
[421481923,1777746641000,-500.0,0.00014994,2]
[421481896,1777746641000,-269.35946409,0.00014994,2]
[421481894,1777746641000,-500.0,0.00014994,2]
[421481892,1777746641000,-260.38404943,0.00014994,2]
[421481889,1777746641000,-500.0,0.00014994,2]
[421481903,1777746641000,-500.0,0.00014994,2]
[421481919,1777746641000,-500.0,0.00014994,2]
[421482134,1777746642000,-369022.42321072,0.00015,2]
[421482503,1777746646000,-3195.780499,0.00015,2]
[421482527,1777746646000,-3300.31585,0.00015,2]
[421482530,1777746646000,-2526.86283243,0.00015,2]
[421482529,1777746646000,-9606.86419831,0.00015,2]
[421482528,1777746646000,-6148.77728465,0.00015,2]
[421482537,1777746731000,184.66,9.529e-05,2]
[421482541,1777747831000,-193.52502828,0.00013488,2]
[421482540,1777747831000,-250.0,0.00013,2]
[421482544,1777747831000,-350.0,0.00014375,2]
[421482545,1777747831000,-2000.0,0.00014377,2]
[421482546,1777747831000,-600.0,0.000146,5]
[421482553,1777747831000,-299.99,0.0001488,2]
[421482548,1777747831000,-2142.659,0.000147,2]
[421482547,1777747831000,-782.0,0.00014699,2]
[421482543,1777747831000,-390.57,0.00014315,2]
[421482550,1777747831000,-1200.0,0.000147,5]
[421482557,1777747831000,-13239.50150028,0.000149,2]
[421482554,1777747831000,-534.08099844,0.000149,2]
[421482559,1777747831000,-5528.0,0.000149,5]
[421482558,1777747831000,-4765.36544235,0.000149,2]
[421482560,1777747831000,-201.69812677,0.00014991,2]
[421482556,1777747831000,-2500.0,0.000149,5]
[421482542,1777747831000,-250.0,0.000143,2]
[421482552,1777747831000,-200.0,0.0001488,2]
[421482549,1777747831000,-191.757086,0.000147,2]
[421482551,1777747831000,-1800.0,0.000148,5]
[421482555,1777747831000,-420.53960508,0.000149,2]
[421482605,1777747832000,-734.70335559,0.00014998,2]
[421482634,1777747832000,-734.70335559,0.00014998,2]
[421482608,1777747832000,-734.70335559,0.00014998,2]
[421482618,1777747832000,-734.70335559,0.00014998,2]
[421482611,1777747832000,-734.70335559,0.00014998,2]
[421482614,1777747832000,-734.70335559,0.00014998,2]
[421482622,1777747832000,-734.70335559,0.00014998,2]
[421482624,1777747832000,-734.70335559,0.00014998,2]
[421482626,1777747832000,-734.70335559,0.00014998,2]
[421482628,1777747832000,-734.70335559,0.00014998,2]
[421482651,1777747832000,-734.70335559,0.00014998,2]
[421482654,1777747832000,-734.70335559,0.00014998,2]
[421482649,1777747832000,-734.70335559,0.00014998,2]
[421482636,1777747832000,-734.70335559,0.00014998,2]
[421482643,1777747832000,-734.70335559,0.00014998,2]
[421482620,1777747832000,-734.70335559,0.00014998,2]
[421482645,1777747832000,-734.70335559,0.00014998,2]
[421482632,1777747832000,-734.70335559,0.00014998,2]
[421482638,1777747832000,-734.70335559,0.00014998,2]
[421482630,1777747832000,-734.70335559,0.00014998,2]
[421482647,1777747832000,-734.70335559,0.00014998,2]
[421482656,1777747832000,-734.70335559,0.00014998,2]
[421482666,1777747832000,-730.83649583,0.00014998,2]
[421482662,1777747832000,-734.70335559,0.00014998,2]
[421482641,1777747832000,-734.70335559,0.00014998,2]
[421482603,1777747832000,-734.70335559,0.00014998,2]
[421482598,1777747832000,-734.70335559,0.00014998,2]
[421482594,1777747832000,-734.70335559,0.00014998,2]
[421482659,1777747832000,-734.70335559,0.00014998,2]
[421482561,1777747832000,-151.0,0.00014997,2]
[421482563,1777747832000,-16564.08267169,0.00014998,2]
[421482565,1777747832000,-1609.30073,0.00014998,2]
[421482564,1777747832000,-753.07092822,0.00014998,2]
[421482568,1777747832000,-500.0,0.00014998,2]
[421482566,1777747832000,-265.84703492,0.00014998,2]
[421482567,1777747832000,-9351.91899467,0.00014998,2]
[421482570,1777747832000,-734.70335559,0.00014998,2]
[421482569,1777747832000,-734.70335559,0.00014998,2]
[421482571,1777747832000,-500.0,0.00014998,2]
[421482574,1777747832000,-326.82567147,0.00014998,2]
[421482572,1777747832000,-734.70335559,0.00014998,2]
[421482575,1777747832000,-734.70335559,0.00014998,2]
[421482573,1777747832000,-734.70335559,0.00014998,2]
[421482578,1777747832000,-734.70335559,0.00014998,2]
[421482591,1777747832000,-734.70335559,0.00014998,2]
[421482596,1777747832000,-734.70335559,0.00014998,2]
[421482587,1777747832000,-734.70335559,0.00014998,2]
[421482585,1777747832000,-734.70335559,0.00014998,2]
[421482577,1777747832000,-734.70335559,0.00014998,2]
[421482589,1777747832000,-734.70335559,0.00014998,2]
[421482581,1777747832000,-734.70335559,0.00014998,2]
[421482600,1777747832000,-734.70335559,0.00014998,2]
[421482583,1777747832000,-734.70335559,0.00014998,2]
[421482616,1777747832000,-734.70335559,0.00014998,2]
[421482660,1777747832000,-734.70335559,0.00014998,2]
[421482562,1777747832000,-8112.2695269,0.00014998,2]
[421482658,1777747832000,-734.70335559,0.00014998,2]
[421482697,1777747832000,-730.83649584,0.00014998,2]
[421482701,1777747832000,-730.8364958,0.00014998,2]
[421482700,1777747832000,-730.83649584,0.00014998,2]
[421482693,1777747832000,-730.83649584,0.00014998,2]
[421482696,1777747832000,-730.83649584,0.00014998,2]
[421482699,1777747832000,-730.83649584,0.00014998,2]
[421482695,1777747832000,-730.83649584,0.00014998,2]
[421482694,1777747832000,-730.83649584,0.00014998,2]
[421482698,1777747832000,-730.83649584,0.00014998,2]
[421482702,1777747832000,-196.59293313,0.00014999,2]
[421482707,1777747832000,-500.0,0.00014999,2]
[421482709,1777747832000,-500.0,0.00014999,2]
[421482703,1777747832000,-500.0,0.00014999,2]
[421482710,1777747832000,-500.0,0.00014999,2]
[421482714,1777747832000,-500.0,0.00014999,2]
[421482705,1777747832000,-508.15323723,0.00014999,2]
[421482704,1777747832000,-500.0,0.00014999,2]
[421482706,1777747832000,-310.77857945,0.00014999,2]
[421482713,1777747832000,-500.0,0.00014999,2]
[421482711,1777747832000,-500.0,0.00014999,2]
[421482717,1777747832000,-300.0,0.00014999,2]
[421482708,1777747832000,-219.19004884,0.00014999,2]
[421482715,1777747832000,-500.0,0.00014999,2]
[421482716,1777747832000,-307.2484309,0.00014999,2]
[421482657,1777747832000,-734.70335559,0.00014998,2]
[421482692,1777747832000,-730.83649583,0.00014998,2]
[421482691,1777747832000,-730.83649583,0.00014998,2]
[421482712,1777747832000,-500.0,0.00014999,2]
[421482687,1777747832000,-730.83649583,0.00014998,2]
[421482664,1777747832000,-734.70335559,0.00014998,2]
[421482663,1777747832000,-734.70335559,0.00014998,2]
[421482665,1777747832000,-730.83649583,0.00014998,2]
[421482667,1777747832000,-730.83649583,0.00014998,2]
[421482671,1777747832000,-730.83649583,0.00014998,2]
[421482670,1777747832000,-730.83649583,0.00014998,2]
[421482677,1777747832000,-730.83649583,0.00014998,2]
[421482678,1777747832000,-730.83649583,0.00014998,2]
[421482674,1777747832000,-730.83649583,0.00014998,2]
[421482669,1777747832000,-730.83649583,0.00014998,2]
[421482668,1777747832000,-730.83649583,0.00014998,2]
[421482676,1777747832000,-730.83649583,0.00014998,2]
[421482681,1777747832000,-730.83649583,0.00014998,2]
[421482661,1777747832000,-734.70335559,0.00014998,2]
[421482673,1777747832000,-730.83649583,0.00014998,2]
[421482672,1777747832000,-730.83649583,0.00014998,2]
[421482679,1777747832000,-730.83649583,0.00014998,2]
[421482683,1777747832000,-730.83649583,0.00014998,2]
[421482690,1777747832000,-730.83649583,0.00014998,2]
[421482682,1777747832000,-730.83649583,0.00014998,2]
[421482684,1777747832000,-730.83649583,0.00014998,2]
[421482680,1777747832000,-730.83649583,0.00014998,2]
[421482688,1777747832000,-730.83649583,0.00014998,2]
[421482689,1777747832000,-730.83649583,0.00014998,2]
[421482686,1777747832000,-730.83649583,0.00014998,2]
[421482685,1777747832000,-730.83649583,0.00014998,2]
[421482675,1777747832000,-730.83649583,0.00014998,2]
[421482719,1777747833000,-972.0,0.00015,5]
[421482718,1777747833000,-952.0,0.00015,5]
[421482720,1777747833000,-250.0,0.00015,2]
[421482722,1777747833000,-5148.83623322,0.00015,2]
[421482721,1777747833000,-473479.64804416,0.00015,2]
[421482737,1777747838000,-580.29201335,0.00015,2]
[421482735,1777747838000,-380.24418438,0.00015,2]
[421482734,1777747838000,-128687.44681212,0.00015,2]
[421482736,1777747838000,-252.9257169,0.00015,2]
[421482731,1777747838000,-402.909,0.00015,2]
[421482733,1777747838000,-6859.99277437,0.00015,2]
[421482765,1777747840000,-1277.77777,0.00015,2]
[421482762,1777747840000,-305.162653,0.00015,2]
[421482761,1777747840000,-305.162653,0.00015,2]
[421482764,1777747840000,-300.0,0.00015,2]
[421482759,1777747840000,-200.0,0.00015,2]
[421482760,1777747840000,-305.162653,0.00015,2]
[421482763,1777747840000,-305.162653,0.00015,2]
[421482757,1777747840000,-506334.03525275,0.00015,2]
[421482754,1777747840000,-166.14,0.00015,2]
[421482768,1777747840000,-151.0,0.00015,2]
[421482755,1777747840000,-151.0,0.00015,2]
[421482756,1777747840000,-194182.21501267,0.00015,2]
[421482753,1777747840000,-1573548.90442513,0.00015,2]
[421482751,1777747840000,-872.89563085,0.00015,2]
[421482752,1777747840000,-2878.09324054,0.00015,2]
[421482750,1777747840000,-3051.87877144,0.000149,2]
[421482767,1777747840000,-151.0,0.00015,2]
[421482758,1777747840000,-206.87440688,0.00015,2]
[421482766,1777747840000,-500.0,0.00015,2]
[421482774,1777747840000,-200.0,0.00015455,2]
[421482771,1777747840000,-1277.77778,0.000152,2]
[421482769,1777747840000,-151.0,0.00015,2]
[421482786,1777747840000,-181.0801015,0.00016451,2]
[421482785,1777747840000,-151.0,0.00016438,2]
[421482789,1777747840000,-4765.36544232,0.00016795,2]
[421482788,1777747840000,-13239.50150027,0.00016795,2]
[421482787,1777747840000,-374.42936079,0.00016451,2]
[421482780,1777747840000,-279.9045709,0.00015903,2]
[421482783,1777747840000,-360.89,0.00016244,2]
[421482782,1777747840000,-2000.0,0.00016174,2]
[421482784,1777747840000,-151.0,0.00016438,2]
[421482779,1777747840000,-174.61919141,0.00015903,2]
[421482778,1777747840000,-151.1837373,0.00015903,2]
[421482776,1777747840000,-200.0,0.00015609,2]
[421482777,1777747840000,-1277.77778,0.000158,2]
[421482775,1777747840000,-1277.77777,0.000156,2]
[421482773,1777747840000,-1277.77778,0.000154,2]
[421482770,1777747840000,-200.0,0.0001515,2]
[421482781,1777747840000,-1277.77778,0.00016,2]
[421482772,1777747840000,-200.0,0.00015301,2]
[421482838,1777747841000,-151.0,0.00021514,2]
[421482829,1777747841000,-1534.0,0.00021514,2]
[421482827,1777747841000,-1534.0,0.00021514,2]
[421482826,1777747841000,-151.0,0.00021514,2]
[421482820,1777747841000,-151.0,0.00021,2]
[421482821,1777747841000,-497.0,0.00021,2]
[421482817,1777747841000,-1003.0,0.00020713,5]
[421482823,1777747841000,-420.53960508,0.00021233,2]
[421482815,1777747841000,-4765.36544232,0.00020585,2]
[421482828,1777747841000,-151.0,0.00021514,2]
[421482837,1777747841000,-151.0,0.00021514,2]
[421482831,1777747841000,-1534.0,0.00021514,2]
[421482845,1777747841000,-151.0,0.00021514,2]
[421482834,1777747841000,-151.0,0.00021514,2]
[421482832,1777747841000,-960.46945648,0.00021514,2]
[421482833,1777747841000,-151.0,0.00021514,2]
[421482836,1777747841000,-151.0,0.00021514,2]
[421482848,1777747841000,-151.0,0.00021514,2]
[421482844,1777747841000,-151.0,0.00021514,2]
[421482850,1777747841000,-151.0,0.00021514,2]
[421482842,1777747841000,-151.0,0.00021514,2]
[421482814,1777747841000,-13239.50150027,0.00020585,2]
[421482839,1777747841000,-151.0,0.00021514,2]
[421482840,1777747841000,-151.0,0.00021514,2]
[421482849,1777747841000,-151.0,0.00021514,2]
[421482846,1777747841000,-151.0,0.00021514,2]
[421482835,1777747841000,-151.0,0.00021514,2]
[421482813,1777747841000,-231.3,0.00020381,2]
[421482809,1777747841000,-151.36785972,0.0002,20]
[421482822,1777747841000,-165.0,0.00021,2]
[421482847,1777747841000,-151.0,0.00021514,2]
[421482790,1777747841000,-2000.0,0.00017971,2]
[421482791,1777747841000,-420.53960508,0.00018067,2]
[421482794,1777747841000,-231.3,0.0001841,2]
[421482800,1777747841000,-2000.0,0.00019768,2]
[421482796,1777747841000,-13239.50150027,0.0001869,2]
[421482798,1777747841000,-184.66,0.00019059,2]
[421482799,1777747841000,-150.0,0.0001971,2]
[421482792,1777747841000,-360.89,0.00018275,2]
[421482801,1777747841000,-4983.36278041,0.000199,3]
[421482797,1777747841000,-4765.36544232,0.0001869,2]
[421482795,1777747841000,-257.94676654,0.0001859,2]
[421482825,1777747841000,-1534.0,0.00021514,2]
[421482793,1777747841000,-411.0,0.0001841,2]
[421482804,1777747841000,-900.0,0.0002,2]
[421482805,1777747841000,-198.0,0.0002,2]
[421482802,1777747841000,-2979.71327296,0.0002,7]
[421482806,1777747841000,-151.0,0.0002,2]
[421482807,1777747841000,-497.0,0.0002,2]
[421482812,1777747841000,-360.89,0.00020305,2]
[421482808,1777747841000,-153.0,0.0002,2]
[421482810,1777747841000,-1000.0,0.0002,7]
[421482811,1777747841000,-390.57,0.00020042,2]
[421482818,1777747841000,-160.0,0.00021,7]
[421482824,1777747841000,-224.62092733,0.000215,2]
[421482819,1777747841000,-198.0,0.00021,2]
[421482803,1777747841000,-536.49695808,0.0002,7]
[421482841,1777747841000,-151.0,0.00021514,2]
[421482830,1777747841000,-156.35640537,0.00021514,2]
[421482862,1777747841000,-151.0,0.00022,2]
[421482880,1777747841000,-2518.384697,0.00022479,2]
[421482887,1777747841000,-13239.50150027,0.0002248,2]
[421482878,1777747841000,-2518.384697,0.00022479,2]
[421482881,1777747841000,-151.0,0.00022479,2]
[421482882,1777747841000,-151.0,0.00022479,2]
[421482879,1777747841000,-2518.384697,0.00022479,2]
[421482896,1777747841000,-305.162653,0.0002261,2]
[421482899,1777747841000,-223.583174,0.0002261,2]
[421482898,1777747841000,-151.0,0.0002261,2]
[421482890,1777747841000,-151.0,0.0002261,2]
[421482888,1777747841000,-4765.36544232,0.0002248,2]
[421482889,1777747841000,-1985.21883476,0.000226,2]
[421482875,1777747841000,-151.0,0.00022479,2]
[421482894,1777747841000,-305.162653,0.0002261,2]
[421482895,1777747841000,-305.162653,0.0002261,2]
[421482897,1777747841000,-151.0,0.0002261,2]
[421482893,1777747841000,-305.162653,0.0002261,2]
[421482901,1777747841000,-223.583174,0.0002261,2]
[421482902,1777747841000,-223.583174,0.0002261,2]
[421482904,1777747841000,-282.331922,0.000229,2]
[421482900,1777747841000,-223.583174,0.0002261,2]
[421482903,1777747841000,-529.48019825,0.0002271,2]
[421482906,1777747841000,-282.331922,0.000229,2]
[421482908,1777747841000,-151.0,0.00022997,7]
[421482907,1777747841000,-282.331922,0.000229,2]
[421482843,1777747841000,-151.0,0.00021514,2]
[421482892,1777747841000,-151.0,0.0002261,2]
[421482884,1777747841000,-151.0,0.00022479,2]
[421482891,1777747841000,-151.0,0.0002261,2]
[421482886,1777747841000,-151.0,0.00022479,2]
[421482856,1777747841000,-223.583174,0.00021918,2]
[421482861,1777747841000,-198.0,0.00022,2]
[421482857,1777747841000,-223.583174,0.00021918,2]
[421482860,1777747841000,-810.8845036,0.00022,7]
[421482852,1777747841000,-2000.0,0.00021565,2]
[421482853,1777747841000,-2698.15469656,0.00021818,2]
[421482851,1777747841000,-151.0,0.00021514,2]
[421482858,1777747841000,-223.583174,0.00021918,2]
[421482859,1777747841000,-223.583174,0.00021918,2]
[421482855,1777747841000,-5000.0,0.00021918,2]
[421482863,1777747841000,-497.0,0.00022,2]
[421482864,1777747841000,-243.07447695,0.0002211,2]
[421482872,1777747841000,-209.714737,0.00022479,2]
[421482854,1777747841000,-16564.31759766,0.00021818,2]
[421482870,1777747841000,-209.714737,0.00022479,2]
[421482885,1777747841000,-151.0,0.00022479,2]
[421482883,1777747841000,-151.0,0.00022479,2]
[421482876,1777747841000,-151.0,0.00022479,2]
[421482874,1777747841000,-209.714737,0.00022479,2]
[421482866,1777747841000,-360.89,0.00022336,2]
[421482871,1777747841000,-151.0,0.00022479,2]
[421482869,1777747841000,-151.0,0.00022479,2]
[421482865,1777747841000,-323.0185332,0.00022236,2]
[421482873,1777747841000,-209.714737,0.00022479,2]
[421482868,1777747841000,-377.79,0.00022466,2]
[421482905,1777747841000,-282.331922,0.000229,2]
[421482867,1777747841000,-231.3,0.00022353,2]
[421482877,1777747841000,-2518.384697,0.00022479,2]
[421482915,1777747842000,-253.6663613,0.00023,2]
[421482909,1777747842000,-151.0,0.00022997,7]
[421482910,1777747842000,-166.14,0.00023,7]
[421482916,1777747842000,-313.82844319,0.00023,2]
[421482913,1777747842000,-646.67679999,0.00023,7]
[421482912,1777747842000,-4744.40207681,0.00023,2]
[421482911,1777747842000,-8927.14698673,0.00023,2]
[421482936,1777747842000,-216.0,0.0002,2]
[421482938,1777747842000,-234.09927038,0.0002,2]
[421482914,1777747842000,-301796.0324366,0.00023,2]
[421482948,1777747843000,-49.12668643,0.00023,2]
[421482942,1777747843000,-151.0,0.00021514,2]
[421482940,1777747843000,-216.0,0.00021,2]
[421482944,1777747843000,-3229.90072962,0.00023,2]
[421482963,1777747846000,-151.0,0.00023,2]
[421482962,1777747846000,-497.0,0.00023,2]
[421482955,1777747846000,-1538.77951083,0.00017614,2]
[421482956,1777747846000,-1513.09926057,0.00017614,2]
[421482959,1777747846000,-1009.81225665,0.00023,2]
[421482958,1777747846000,-5831.27320173,0.00023,2]
[421482957,1777747846000,-216.0,0.00022,2]
[421482961,1777747846000,-151.0,0.00023,2]
[421482966,1777747846000,-305.162653,0.00023,2]
[421482960,1777747846000,-198.0,0.00023,2]
[421482964,1777747846000,-151.0,0.00023,2]
[421482967,1777747846000,-305.162653,0.00023,2]
[421482969,1777747846000,-129.18732205,0.00023,2]
[421482968,1777747846000,-305.162653,0.00023,2]
[421482971,1777747846000,-151.0,0.00023,2]
[421482970,1777747846000,-175.97533095,0.00023,2]
[421482965,1777747846000,-151.0,0.00023,2]
[421482973,1777747847000,-223.583174,0.00023,2]
[421482972,1777747847000,-151.0,0.00023,2]
[421482982,1777747847000,-209.714737,0.00023,2]
[421482975,1777747847000,-199.77447895,0.00023,2]
[421482976,1777747847000,-223.583174,0.00023,2]
[421482977,1777747847000,-223.583174,0.00023,2]
[421482974,1777747847000,-23.80869505,0.00023,2]
[421482981,1777747847000,-209.714737,0.00023,2]
[421482986,1777747847000,-735.84166681,0.00023,2]
[421482985,1777747847000,-151.0,0.00023,2]
[421482980,1777747847000,-168.720811,0.00023,2]
[421482983,1777747847000,-209.714737,0.00023,2]
[421482978,1777747847000,-151.0,0.00023,2]
[421482979,1777747847000,-209.714737,0.00023,2]
[421482984,1777747847000,-151.0,0.00023,2]
[421482991,1777747970000,23834.7536805,0.00030136,120]
[421483039,1777749038000,-480.22492544,0.00014999,2]
[421483040,1777749038000,-152.0,0.00015,2]
[421483041,1777749038000,-151.0,0.00015001,2]
[421483042,1777749038000,-151.0,0.00015003,2]
[421483046,1777749038000,-151.0,0.00015668,2]
[421483044,1777749038000,-150.0,0.00015042,2]
[421483048,1777749038000,-2500.0,0.00016499,2]
[421483049,1777749038000,-2500.0,0.00016499,2]
[421483043,1777749038000,-151.0,0.0001501,2]
[421483047,1777749038000,-173.4,0.00016438,2]
[421483051,1777749038000,-2500.0,0.00016499,2]
[421483050,1777749038000,-2500.0,0.00016499,2]
[421483052,1777749038000,-829.54546032,0.00016499,2]
[421483053,1777749038000,-2413.97225312,0.00017803,2]
[421483045,1777749038000,-151.0,0.00015167,2]
[421483066,1777749040000,-2137.9822266,0.00017803,2]
[421483067,1777749040000,-1971.275,0.00017803,2]
[421483092,1777749046000,-19743.82672229,0.00017803,2]
[421483093,1777749046000,-1041.20961511,0.00017803,2]
[421483098,1777749152000,1571.7382107,0.00030137,120]
[421483099,1777749554000,184.67,8.656e-05,2]
[421483100,1777749900000,180.44,0.00025091,120]
[421483103,1777750146000,-250.0,0.00013,2]
[421483104,1777750211000,2410.27969319,0.00012,2]
[421483105,1777750211000,617174.85920893,0.00012,2]
[421483282,1777750276000,-162359.33374556,0.00012,2]
[421483281,1777750276000,-51.06027322,0.00012,2]
[421483279,1777750276000,-224.46986339,0.0001199,2]
[421483280,1777750276000,-224.46986339,0.0001199,2]
[421483284,1777750277000,-1373.25000103,0.00012,2]
[421483283,1777750277000,-737436.40358388,0.00012,2]
[421483286,1777750277000,-904.1372,0.00012,2]
[421483285,1777750277000,-1222.69478,0.00012,2]
[421483287,1777750277000,-1128.37587025,0.00012,2]
[421483291,1777750277000,-7997.52238149,0.00012,2]
[421483290,1777750277000,-1106196.17615144,0.00012,2]
[421483289,1777750277000,-403.46388559,0.00012,2]
[421483292,1777750277000,-5420.14792206,0.00012,2]
[421483294,1777750277000,-304.0,0.00012,2]
[421483288,1777750277000,-1649.00125136,0.00012,2]
[421483293,1777750277000,-302.0,0.00012,2]
[421483295,1777750278000,-2621.35198455,0.00012,2]
[421483296,1777750279000,-5000.01,0.00012,2]
[421483297,1777750300000,500.0,0.00029885,120]
[421483301,1777750449000,-280.0,0.00011701,2]
[421483300,1777750449000,-2445.950878,0.00011701,2]
[421483337,1777750450000,-581.14366338,0.00011999,2]
[421483314,1777750450000,-150.0,0.00011999,2]
[421483316,1777750450000,-1157.22138104,0.00011999,3]
[421483315,1777750450000,-206.8571084,0.00011999,3]
[421483313,1777750450000,-500.0,0.00011999,2]
[421483310,1777750450000,-2931.87850242,0.00011977,2]
[421483311,1777750450000,-150.0,0.00011988,2]
[421483309,1777750450000,-13055.25763283,0.00011977,2]
[421483306,1777750450000,-2681.50741031,0.00011879,2]
[421483308,1777750450000,-500.0,0.000119,4]
[421483307,1777750450000,-300.0,0.00011898,2]
[421483305,1777750450000,-300.0,0.00011878,2]